[Event "European-ch Seniors 2018"]
[Site "Drammen"]
[Date "2018.08.06"]
[Round "3"]
[White "Agdestein, Simen"]
[Black "Biro, Sandor"]
[Result "1-0"]
[ECO "C76"]
[WhiteElo "2576"]
[BlackElo "2193"]
[Annotator "ChessBase"]
[PlyCount "77"]
[EventDate "2018.08.04"]
[EventType "swiss"]
[EventCountry "NOR"]
[SourceTitle "playchess.com"]
[Source "ChessBase"]
[SourceQuality "1"]
[TimeControl "40/5400+30:1800+30"]

1. e4 {[%emt 0:00:00]} e5 {[%emt 0:01:59]} 2. Nf3 {[%emt 0:00:00]} Nc6 {[%emt 0:00:24]} 3. Bb5 {[%emt 0:00:00]} g6 {[%emt 0:01:28]} 4. c3 {[%emt 0:00:41]} a6 {[%emt 0:00:08]} 5. Ba4 {[%emt 0:02:31]} d6 {[%emt 0:00:07]} 6. d4 {[%emt 0:00:26]} Bd7 {[%emt 0:00:07]} 7. Bg5 {[%emt 0:04:15]} f6 {[%emt 0:05:25]} 8. Be3 {[%emt 0:00:25]} Nh6 {[%emt 0:00:14]} 9. O-O {[%emt 0:02:22]} Nf7 {[%emt 0:05:03]} 10. Bb3 {[%emt 0:07:45]} Qe7 {[%emt 0:10:38]} 11. c4 {[%emt 0:03:27]} Bg7 {[%emt 0:00:22]} 12. Nc3 {[%emt 0:03:10]} O-O {[%emt 0:00:12]} 13. Nd5 {[%emt 0:03:06]} Qd8 {[%emt 0:00:07]} 14. c5 {[%emt 0:04:02]} Bg4 {[%emt 0:02:04]} 15. cxd6 {[%emt 0:05:42]} Qxd6 {[%emt 0:04:46]} 16. dxe5 {[%emt 0:00:12]} fxe5 {[%emt 0:24:15]} 17. Rc1 {[%emt 0:01:05]} Nd4 {[%emt 0:14:30]} 18. Rxc7 {[%emt 0:03:59]} Kh8 {[%emt 0:00:41]} 19. Bxd4 {[%emt 0:06:59]} exd4 {[%emt 0:00:30]} 20. h3 {[%emt 0:01:17]} Bd7 {[%emt 0:19:13]} 21. Rxb7 {[%emt 0:02:06]} Rae8 {[%emt 0:05:25]} 22. Re1 {[%emt 0:01:28]} Bc8 {[%emt 0:01:21]} 23. Rb6 {[%emt 0:01:12]} Qd8 {[%emt 0:00:29]} 24. Ba4 {[%emt 0:12:43]} Ne5 {[%emt 0:01:06]} 25. Nxd4 {[%emt 0:00:28]} Bxh3 {[%emt 0:00:47]} 26. Bxe8 {[%emt 0:05:18]} Bxg2 {[%emt 0:00:51]} 27. f4 {[%emt 0:01:53]} Qh4 {[%emt 0:00:19]} 28. Kxg2 {[%emt 0:01:34]} Ng4 {[%emt 0:00:23]} 29. Qf3 {[%emt 0:04:02]} Qh2+ {[%emt 0:00:27]} 30. Kf1 {[%emt 0:00:03]} Bxd4 {[%emt 0:00:10]} 31. Rb4 {[%emt 0:05:54]} Qd2 {[%emt 0:00:20]} 32. Re2 {[%emt 0:00:11]} Qd1+ {[%emt 0:00:47]} 33. Kg2 {[%emt 0:00:04]} Qg1+ {[%emt 0:00:22]} 34. Kh3 {[%emt 0:00:03]} h5 {[%emt 0:00:48]} 35. Rxd4 {[%emt 0:03:33]} Qxd4 {[%emt 0:00:42]} 36. Bxg6 {[%emt 0:00:06]} Qg7 {[%emt 0:00:31]} 37. Bxh5 {[%emt 0:01:04]} Ne5 {[%emt 0:00:17]} 38. Qg3 {[%emt 0:00:44]} Qd7+ {[%emt 0:00:20]} 39. Bg4 {[%emt 0:00:34]} 1-0

[Event "European-ch Seniors 2018"]
[Site "Drammen"]
[Date "2018.08.06"]
[Round "3"]
[White "Ogaard, Leif"]
[Black "Furman, Boris"]
[Result "1-0"]
[ECO "D38"]
[WhiteElo "2386"]
[BlackElo "2242"]
[Annotator "NA"]
[PlyCount "79"]
[EventDate "2018.08.04"]
[EventType "swiss"]
[EventCountry "NOR"]
[SourceTitle "playchess.com"]
[Source "ChessBase"]
[SourceQuality "1"]
[TimeControl "40/5400+30:1800+30"]

1. Nf3 {[%emt 0:00:00]} d5 {[%emt 0:00:00]} 2. d4 {[%emt 0:00:22]} Nf6 {[%emt 0:00:08]} 3. c4 {[%emt 0:00:57]} e6 {[%emt 0:00:07]} 4. Nc3 {[%emt 0:01:05]} Bb4 {[%emt 0:00:08]} 5. e3 {[%emt 0:00:35]} O-O {[%emt 0:00:23]} 6. Bd3 {[%emt 0:00:15]} Nc6 {[%emt 0:00:21]} 7. O-O {[%emt 0:00:50]} a6 {[%emt 0:00:22]} 8. h3 {[%emt 0:01:30]} dxc4 {[%emt 0:00:18]} 9. Bxc4 {[%emt 0:00:07]} Bd6 {[%emt 0:00:06]} 10. e4 {[%emt 0:05:59]} e5 {[%emt 0:00:48]} 11. Be3 {[%emt 0:03:40]} b5 {[%emt 0:03:01]} 12. Bb3 {[%emt 0:23:44]} Bb7 {[%emt 0:04:04]} 13. dxe5 {[%emt 0:10:50]} Nxe5 {[%emt 0:00:50]} 14. Nxe5 {[%emt 0:00:17]} Bxe5 {[%emt 0:00:06]} 15. Bc5 {[%emt 0:00:20]} Qxd1 {[%emt 0:07:49]} 16. Rfxd1 {[%emt 0:00:45]} Rfe8 {[%emt 0:09:05]} 17. f3 {[%emt 0:00:20]} Rad8 {[%emt 0:01:21]} 18. Rab1 {[%emt 0:11:08]} Nd7 {[%emt 0:04:26]} 19. Be3 {[%emt 0:05:47]} Nf8 {[%emt 0:04:23]} 20. a4 {[%emt 0:07:04]} c6 {[%emt 0:08:28]} 21. Bb6 {[%emt 0:02:13]} Rd7 {[%emt 0:01:42]} 22. Kf2 {[%emt 0:02:25]} Ree7 {[%emt 0:01:17]} 23. Ke3 {[%emt 0:08:30]} Rxd1 {[%emt 0:12:06]} 24. Rxd1 {[%emt 0:00:17]} Rd7 {[%emt 0:00:31]} 25. Bd4 {[%emt 0:03:34]} Bd6 {[%emt 0:03:14]} 26. e5 {[%emt 0:01:10]} Re7 {[%emt 0:02:19]} 27. f4 {[%emt 0:01:15]} Bb4 {[%emt 0:13:42]} 28. Ne4 {[%emt 0:00:58]} Nd7 {[%emt 0:04:13]} 29. Bc5 {[%emt 0:00:38]} Bxc5+ {[%emt 0:01:03]} 30. Nxc5 {[%emt 0:00:08]} Nf8 {[%emt 0:04:22]} 31. Rd8 {[%emt 0:00:32]} g5 {[%emt 0:01:09]} 32. Rb8 {[%emt 0:02:16]} gxf4+ {[%emt 0:00:25]} 33. Kd4 {[%emt 0:01:04]} bxa4 {[%emt 0:02:29]} 34. Bc4 {[%emt 0:00:14]} Kg7 {[%emt 0:02:20]} 35. Rxb7 {[%emt 0:00:14]} Rxb7 {[%emt 0:01:11]} 36. Nxb7 {[%emt 0:00:08]} Ng6 {[%emt 0:02:55]} 37. Bd3 {[%emt 0:02:18]} Ne7 {[%emt 0:01:14]} 38. Nd6 {[%emt 0:00:43]} Nd5 {[%emt 0:00:40]} 39. Be4 {[%emt 0:00:46]} Ne3 {[%emt 0:00:49]} 40. Nf5+ {[%emt 0:00:00]} 1-0

[Event "European-ch Seniors 2018"]
[Site "Drammen"]
[Date "2018.08.06"]
[Round "3"]
[White "Renman, Nils-Gustaf"]
[Black "Malmdin, Nils Ake"]
[Result "1-0"]
[ECO "A41"]
[WhiteElo "2348"]
[BlackElo "2135"]
[Annotator "NA"]
[PlyCount "109"]
[EventDate "2018.08.04"]
[EventType "swiss"]
[EventCountry "NOR"]
[SourceTitle "playchess.com"]
[Source "ChessBase"]
[SourceQuality "1"]
[TimeControl "40/5400+30:1800+30"]

1. d4 {[%emt 0:00:00]} d6 {[%emt 0:00:00]} 2. Nf3 {[%emt 0:00:00]} Bg4 {[%emt 0:00:13]} 3. e3 {[%emt 0:02:06]} Nf6 {[%emt 0:02:03]} 4. h3 {[%emt 0:02:09]} Bh5 {[%emt 0:00:36]} 5. c4 {[%emt 0:01:19]} c6 {[%emt 0:01:42]} 6. Nc3 {[%emt 0:00:44]} e6 {[%emt 0:06:50]} 7. Be2 {[%emt 0:03:36]} Be7 {[%emt 0:02:27]} 8. e4 {[%emt 0:06:09]} Qa5 {[%emt 0:17:44]} 9. O-O {[%emt 0:00:26]} Nbd7 {[%emt 0:02:18]} 10. Be3 {[%emt 0:01:16]} Bg6 {[%emt 0:11:56]} 11. Nd2 {[%emt 0:01:56]} d5 {[%emt 0:01:39]} 12. e5 {[%emt 0:07:05]} Ne4 {[%emt 0:02:42]} 13. Ncxe4 {[%emt 0:09:57]} dxe4 {[%emt 0:00:12]} 14. a3 {[%emt 0:02:33]} Qc7 {[%emt 0:07:56]} 15. b4 {[%emt 0:08:40]} a5 {[%emt 0:03:55]} 16. Qb3 {[%emt 0:01:20]} f5 {[%emt 0:09:54]} 17. c5 {[%emt 0:04:07]} Bf7 {[%emt 0:00:56]} 18. Nc4 {[%emt 0:00:51]} a4 {[%emt 0:00:40]} 19. Qa2 {[%emt 0:03:35]} O-O {[%emt 0:01:04]} 20. Nd6 {[%emt 0:03:48]} Bxd6 {[%emt 0:02:12]} 21. cxd6 {[%emt 0:06:04]} Qc8 {[%emt 0:00:51]} 22. b5 {[%emt 0:07:09]} Nb6 {[%emt 0:01:29]} 23. bxc6 {[%emt 0:04:39]} bxc6 {[%emt 0:00:14]} 24. f3 {[%emt 0:05:10]} Nd5 {[%emt 0:04:14]} 25. Qd2 {[%emt 0:04:16]} exf3 26. Bxf3 Qd7 {[%emt 0:04:13]} 27. Rfc1 {[%emt 0:00:42]} Rfb8 {[%emt 0:01:12]} 28. Rc4 {[%emt 0:01:58]} Rb3 {[%emt 0:03:48]} 29. Bf2 {[%emt 0:00:13]} Qb7 {[%emt 0:01:12]} 30. Qc1 {[%emt 0:01:43]} Be8 {[%emt 0:05:43]} 31. Bd1 {[%emt 0:00:24]} Rb6 {[%emt 0:00:58]} 32. Bxa4 {[%emt 0:02:12]} Rba6 {[%emt 0:01:15]} 33. Bd1 {[%emt 0:00:15]} Qa7 {[%emt 0:01:31]} 34. a4 {[%emt 0:01:35]} h6 {[%emt 0:00:09]} 35. Rc5 {[%emt 0:01:22]} Nb4 {[%emt 0:01:50]} 36. Qc4 {[%emt 0:00:58]} Nd5 {[%emt 0:00:19]} 37. a5 {[%emt 0:00:25]} Bd7 {[%emt 0:00:33]} 38. Be2 {[%emt 0:01:02]} Qb7 {[%emt 0:00:46]} 39. Qc1 {[%emt 0:00:37]} R6a7 {[%emt 0:00:28]} 40. Rb1 {[%emt 0:01:05]} Qc8 {[%emt 0:00:21]} 41. Be1 {[%emt 0:01:50]} Qe8 {[%emt 0:04:53]} 42. Rc2 {[%emt 0:03:05]} g5 {[%emt 0:01:59]} 43. Rcb2 {[%emt 0:00:34]} Nf4 {[%emt 0:04:03]} 44. Bf1 {[%emt 0:01:04]} Nd5 {[%emt 0:04:13]} 45. Bc4 {[%emt 0:07:14]} f4 {[%emt 0:04:52]} 46. Bd2 {[%emt 0:01:14]} Rd8 {[%emt 0:08:12]} 47. Rb7 {[%emt 0:01:00]} Raa8 {[%emt 0:00:24]} 48. Qc2 {[%emt 0:00:48]} Kg7 {[%emt 0:01:04]} 49. a6 {[%emt 0:00:34]} Qh5 {[%emt 0:01:31]} 50. a7 {[%emt 0:07:48]} Qe8 {[%emt 0:02:13]} 51. Bxd5 {[%emt 0:01:44]} cxd5 {[%emt 0:00:29]} 52. Qc7 {[%emt 0:01:30]} Kf8 {[%emt 0:01:59]} 53. Rb8 {[%emt 0:00:56]} Bc6 {[%emt 0:00:35]} 54. Rxd8 {[%emt 0:00:51]} Rxd8 {[%emt 0:00:29]} 55. Rb8 {[%emt 0:00:18]} 1-0

[Event "European-ch Seniors 2018"]
[Site "Drammen"]
[Date "2018.08.06"]
[Round "3"]
[White "Stebbings, Anthony"]
[Black "Kolbak, Jens"]
[Result "1-0"]
[ECO "E86"]
[WhiteElo "2265"]
[BlackElo "2181"]
[Annotator "NA"]
[PlyCount "79"]
[EventDate "2018.08.04"]
[EventType "swiss"]
[EventCountry "NOR"]
[SourceTitle "playchess.com"]
[Source "ChessBase"]
[SourceQuality "1"]
[TimeControl "40/5400+30:1800+30"]

1. d4 {[%emt 0:00:00]} Nf6 {[%emt 0:00:00]} 2. c4 {[%emt 0:00:00]} g6 {[%emt 0:00:14]} 3. Nc3 {[%emt 0:00:00]} Bg7 {[%emt 0:00:16]} 4. e4 {[%emt 0:00:00]} d6 {[%emt 0:00:05]} 5. f3 {[%emt 0:00:00]} O-O {[%emt 0:01:04]} 6. Be3 {[%emt 0:00:00]} e5 {[%emt 0:03:40]} 7. Nge2 {[%emt 0:00:07]} c6 {[%emt 0:01:12]} 8. Qd2 {[%emt 0:00:24]} Nbd7 {[%emt 0:03:27]} 9. O-O-O {[%emt 0:00:14]} Qa5 {[%emt 0:17:24]} 10. Kb1 {[%emt 0:02:49]} b5 {[%emt 0:06:08]} 11. cxb5 {[%emt 0:00:30]} cxb5 {[%emt 0:00:30]} 12. dxe5 {[%emt 0:00:30]} dxe5 {[%emt 0:00:30]} 13. Nc1 {[%emt 0:12:00]} a6 {[%emt 0:04:19]} 14. Nb3 {[%emt 0:01:37]} Qc7 {[%emt 0:01:47]} 15. Rc1 {[%emt 0:14:26]} Qd8 {[%emt 0:01:10]} 16. Be2 {[%emt 0:03:43]} Bb7 {[%emt 0:02:36]} 17. Rhd1 {[%emt 0:02:51]} Rc8 {[%emt 0:01:56]} 18. a4 {[%emt 0:09:04]} bxa4 {[%emt 0:14:38]} 19. Nxa4 {[%emt 0:00:06]} Rxc1+ {[%emt 0:00:47]} 20. Rxc1 {[%emt 0:02:52]} Qa8 {[%emt 0:02:21]} 21. Nac5 {[%emt 0:09:26]} Nxc5 {[%emt 0:00:30]} 22. Nxc5 {[%emt 0:00:30]} a5 {[%emt 0:00:30]} 23. Nxb7 {[%emt 0:00:30]} Qxb7 {[%emt 0:13:09]} 24. Qxa5 {[%emt 0:07:30]} Nxe4 {[%emt 0:00:30]} 25. Rc7 {[%emt 0:04:53]} Qb3 {[%emt 0:01:51]} 26. Qa3 {[%emt 0:05:22]} Qxa3 {[%emt 0:06:54]} 27. bxa3 {[%emt 0:00:02]} Nd6 {[%emt 0:00:08]} 28. a4 {[%emt 0:06:31]} Rb8+ {[%emt 0:02:28]} 29. Kc2 {[%emt 0:03:24]} e4 {[%emt 0:05:29]} 30. fxe4 {[%emt 0:03:19]} Be5 {[%emt 0:01:31]} 31. Re7 {[%emt 0:03:25]} Rb2+ {[%emt 0:03:23]} 32. Kd1 {[%emt 0:00:27]} Bf6 {[%emt 0:00:44]} 33. Rd7 {[%emt 0:02:11]} Nxe4 {[%emt 0:00:37]} 34. Bc4 {[%emt 0:02:09]} Ng5 {[%emt 0:03:23]} 35. a5 {[%emt 0:00:30]} Rb4 {[%emt 0:00:59]} 36. Bxg5 {[%emt 0:03:50]} Bxg5 {[%emt 0:00:30]} 37. Bxf7+ {[%emt 0:00:07]} Kg7 {[%emt 0:00:57]} 38. a6 {[%emt 0:00:26]} Be3 {[%emt 0:00:30]} 39. a7 {[%emt 0:00:30]} Ra4 {[%emt 0:00:50]} 40. Bd5+ {[%emt 0:00:00]} 1-0

[Event "European-ch Seniors 2018"]
[Site "Drammen"]
[Date "2018.08.06"]
[Round "3"]
[White "Lederman, Leon S"]
[Black "Bogdanov, Valentin"]
[Result "1/2-1/2"]
[ECO "B35"]
[WhiteElo "2245"]
[BlackElo "2356"]
[Annotator "NA"]
[PlyCount "77"]
[EventDate "2018.08.04"]
[EventType "swiss"]
[EventCountry "NOR"]
[SourceTitle "playchess.com"]
[Source "ChessBase"]
[SourceQuality "1"]
[TimeControl "40/5400+30:1800+30"]

1. e4 {[%emt 0:00:00]} c5 {[%emt 0:00:00]} 2. Nf3 {[%emt 0:00:00]} Nc6 {[%emt 0:00:00]} 3. d4 {[%emt 0:00:00]} cxd4 {[%emt 0:00:00]} 4. Nxd4 {[%emt 0:00:00]} g6 {[%emt 0:00:00]} 5. Nc3 {[%emt 0:00:18]} Bg7 {[%emt 0:00:04]} 6. Be3 {[%emt 0:00:03]} Nf6 {[%emt 0:00:14]} 7. Bc4 {[%emt 0:00:06]} O-O {[%emt 0:00:16]} 8. Bb3 {[%emt 0:00:05]} Re8 {[%emt 0:01:12]} 9. O-O {[%emt 0:04:49]} d6 {[%emt 0:06:18]} 10. h3 {[%emt 0:01:32]} Na5 {[%emt 0:02:30]} 11. Qf3 {[%emt 0:04:10]} b6 {[%emt 0:10:00]} 12. Rad1 {[%emt 0:02:29]} Bb7 {[%emt 0:01:06]} 13. Rfe1 {[%emt 0:00:10]} Nxb3 {[%emt 0:04:34]} 14. axb3 {[%emt 0:01:34]} Rc8 {[%emt 0:02:28]} 15. Bg5 {[%emt 0:04:12]} h6 {[%emt 0:02:35]} 16. Bh4 {[%emt 0:01:59]} Rc5 {[%emt 0:05:09]} 17. Qd3 {[%emt 0:02:58]} Qa8 {[%emt 0:01:19]} 18. f3 {[%emt 0:01:38]} Nh5 {[%emt 0:06:05]} 19. Nde2 {[%emt 0:04:38]} Qc8 {[%emt 0:04:10]} 20. Ra1 {[%emt 0:11:07]} a5 {[%emt 0:06:05]} 21. Bf2 {[%emt 0:08:19]} Ba6 {[%emt 0:00:43]} 22. Qd2 {[%emt 0:04:47]} Bxe2 {[%emt 0:02:27]} 23. Rxe2 {[%emt 0:00:10]} Rxc3 {[%emt 0:01:03]} 24. bxc3 {[%emt 0:00:13]} Bxc3 {[%emt 0:00:06]} 25. Qc1 {[%emt 0:00:16]} Qa6 {[%emt 0:03:10]} 26. Re3 {[%emt 0:07:17]} Bxa1 {[%emt 0:07:02]} 27. Qxa1 {[%emt 0:00:06]} Rc8 {[%emt 0:00:49]} 28. e5 {[%emt 0:01:48]} d5 {[%emt 0:03:35]} 29. e6 {[%emt 0:00:36]} Rxc2 {[%emt 0:01:07]} 30. exf7+ {[%emt 0:00:59]} Kxf7 {[%emt 0:00:07]} 31. Qe5 {[%emt 0:00:22]} Qb7 {[%emt 0:02:02]} 32. Qe6+ {[%emt 0:02:03]} Kg7 {[%emt 0:00:13]} 33. g4 {[%emt 0:10:52]} Rc1+ {[%emt 0:02:53]} 34. Re1 {[%emt 0:02:50]} Rxe1+ {[%emt 0:01:02]} 35. Bxe1 {[%emt 0:00:01]} Nf6 {[%emt 0:00:28]} 36. Bc3 {[%emt 0:08:29]} Qc7 {[%emt 0:02:21]} 37. Be5 {[%emt 0:00:10]} Qc1+ {[%emt 0:02:19]} 38. Kg2 {[%emt 0:00:18]} Qd2+ {[%emt 0:00:11]} 39. Kf1 {[%emt 0:00:43]} 1/2-1/2

[Event "European-ch Seniors 2018"]
[Site "Drammen"]
[Date "2018.08.06"]
[Round "3"]
[White "Moen, Ole Christian"]
[Black "Taksrud, Vidar"]
[Result "1-0"]
[ECO "B01"]
[WhiteElo "2228"]
[BlackElo "2047"]
[Annotator "NA"]
[PlyCount "109"]
[EventDate "2018.08.04"]
[EventType "swiss"]
[EventCountry "NOR"]
[SourceTitle "playchess.com"]
[Source "ChessBase"]
[SourceQuality "1"]
[TimeControl "40/5400+30:1800+30"]

1. e4 {[%emt 0:00:20]} d5 {[%emt 0:00:00]} 2. exd5 {[%emt 0:00:10]} Nf6 {[%emt 0:00:10]} 3. Bb5+ {[%emt 0:00:22]} Nbd7 {[%emt 0:00:13]} 4. c4 {[%emt 0:02:38]} g6 {[%emt 0:01:06]} 5. Nc3 {[%emt 0:00:28]} Bg7 {[%emt 0:00:09]} 6. Nf3 {[%emt 0:01:06]} O-O {[%emt 0:00:10]} 7. Ba4 {[%emt 0:01:23]} Nb6 {[%emt 0:01:15]} 8. Bb3 {[%emt 0:00:10]} a5 {[%emt 0:00:28]} 9. O-O {[%emt 0:01:17]} Bg4 {[%emt 0:02:00]} 10. a3 {[%emt 0:03:09]} Nfd7 {[%emt 0:03:28]} 11. h3 {[%emt 0:01:50]} Bf5 {[%emt 0:04:38]} 12. c5 {[%emt 0:02:02]} Nxc5 {[%emt 0:01:17]} 13. d4 {[%emt 0:00:39]} Nxb3 {[%emt 0:00:38]} 14. Qxb3 {[%emt 0:00:04]} Bd3 {[%emt 0:00:42]} 15. Re1 {[%emt 0:00:53]} Bc4 {[%emt 0:01:00]} 16. Qc2 {[%emt 0:02:19]} Bxd5 {[%emt 0:01:31]} 17. Bg5 {[%emt 0:00:06]} f6 {[%emt 0:10:02]} 18. Nxd5 {[%emt 0:00:33]} Nxd5 {[%emt 0:00:21]} 19. Bd2 {[%emt 0:00:37]} Qd6 {[%emt 0:05:00]} 20. Re2 {[%emt 0:01:02]} e6 {[%emt 0:04:16]} 21. Rae1 {[%emt 0:01:15]} Rfe8 {[%emt 0:00:15]} 22. Qc4 {[%emt 0:02:32]} c6 {[%emt 0:03:22]} 23. a4 {[%emt 0:00:59]} b6 {[%emt 0:04:09]} 24. b3 {[%emt 0:02:19]} Kh8 {[%emt 0:01:15]} 25. Bc1 {[%emt 0:00:36]} b5 {[%emt 0:04:27]} 26. Qd3 {[%emt 0:05:53]} Rac8 {[%emt 0:06:24]} 27. Bd2 {[%emt 0:01:10]} b4 {[%emt 0:00:15]} 28. Qa6 {[%emt 0:03:06]} e5 {[%emt 0:02:01]} 29. dxe5 {[%emt 0:06:22]} fxe5 {[%emt 0:01:23]} 30. Ng5 {[%emt 0:02:20]} Kg8 {[%emt 0:11:12]} 31. Qxa5 {[%emt 0:00:11]} Qf8 {[%emt 0:09:06]} 32. Qa6 {[%emt 0:01:32]} h6 {[%emt 0:01:12]} 33. Ne4 {[%emt 0:03:23]} Kh7 {[%emt 0:00:34]} 34. Qc4 {[%emt 0:00:35]} Red8 {[%emt 0:01:45]} 35. Nc5 {[%emt 0:03:54]} Qg8 {[%emt 0:05:11]} 36. Re4 {[%emt 0:03:27]} Nf6 {[%emt 0:03:08]} 37. Qxg8+ {[%emt 0:00:07]} Kxg8 {[%emt 0:00:08]} 38. R4e2 {[%emt 0:00:03]} Nd5 {[%emt 0:01:06]} 39. Ne6 {[%emt 0:00:28]} Rd6 {[%emt 0:04:02]} 40. Nxg7 {[%emt 0:00:00]} Kxg7 {[%emt 0:00:00]} 41. Rxe5 {[%emt 0:00:13]} c5 {[%emt 0:02:03]} 42. R5e4 {[%emt 0:01:40]} g5 {[%emt 0:03:07]} 43. h4 {[%emt 0:01:23]} Kf6 {[%emt 0:03:18]} 44. hxg5+ {[%emt 0:01:37]} hxg5 {[%emt 0:00:03]} 45. Rg4 {[%emt 0:00:31]} c4 {[%emt 0:03:00]} 46. Bxg5+ {[%emt 0:01:18]} Kf5 {[%emt 0:00:14]} 47. Rxc4 {[%emt 0:00:03]} Rxc4 {[%emt 0:00:59]} 48. bxc4 {[%emt 0:00:07]} Nc3 {[%emt 0:00:50]} 49. Be7 {[%emt 0:00:08]} Rb6 {[%emt 0:00:31]} 50. a5 {[%emt 0:00:32]} Rb8 {[%emt 0:00:44]} 51. Bd6 {[%emt 0:00:22]} Rc8 {[%emt 0:02:17]} 52. Bxb4 {[%emt 0:00:10]} Na2 {[%emt 0:00:05]} 53. Bd2 {[%emt 0:01:09]} Rxc4 {[%emt 0:00:05]} 54. Ra1 {[%emt 0:02:26]} Rc2 {[%emt 0:00:20]} 55. a6 {[%emt 0:00:30]} 1-0

[Event "European-ch Seniors 2018"]
[Site "Drammen"]
[Date "2018.08.06"]
[Round "3"]
[White "Gruzmann, Boris"]
[Black "Ackermann, Hans Werner"]
[Result "1/2-1/2"]
[ECO "B00"]
[WhiteElo "2183"]
[BlackElo "2246"]
[Annotator "NA"]
[PlyCount "34"]
[EventDate "2018.08.04"]
[EventType "swiss"]
[EventCountry "NOR"]
[SourceTitle "playchess.com"]
[Source "ChessBase"]
[SourceQuality "1"]
[TimeControl "40/5400+30:1800+30"]

1. e4 {[%emt 0:00:00]} d6 {[%emt 0:00:00]} 2. d4 {[%emt 0:00:00]} g6 {[%emt 0:00:00]} 3. Nc3 {[%emt 0:00:10]} a6 {[%emt 0:00:01]} 4. Be3 {[%emt 0:00:57]} b5 {[%emt 0:00:26]} 5. Qd2 {[%emt 0:00:27]} Bb7 {[%emt 0:00:32]} 6. f3 {[%emt 0:00:16]} Nd7 {[%emt 0:00:32]} 7. h4 {[%emt 0:01:31]} h5 {[%emt 0:03:12]} 8. Nh3 {[%emt 0:02:04]} Bg7 {[%emt 0:09:21]} 9. Ng5 {[%emt 0:02:44]} Ngf6 {[%emt 0:06:33]} 10. a4 {[%emt 0:01:05]} bxa4 {[%emt 0:03:19]} 11. Bc4 {[%emt 0:09:23]} O-O {[%emt 0:04:44]} 12. O-O-O {[%emt 0:07:12]} Nb6 {[%emt 0:07:48]} 13. Ba2 {[%emt 0:01:19]} Qd7 {[%emt 0:14:48]} 14. Rdg1 {[%emt 0:15:08]} a3 {[%emt 0:10:01]} 15. bxa3 {[%emt 0:10:19]} Na4 {[%emt 0:04:16]} 16. Nxa4 {[%emt 0:00:33]} Qxa4 {[%emt 0:00:04]} 17. Qb4 {[%emt 0:00:12]} Qxb4 1/2-1/2

[Event "European-ch Seniors 2018"]
[Site "Drammen"]
[Date "2018.08.06"]
[Round "3"]
[White "Blomstrom, Lars"]
[Black "Voll, Oddvar U"]
[Result "1-0"]
[ECO "A04"]
[WhiteElo "2167"]
[BlackElo "1907"]
[Annotator "NA"]
[PlyCount "113"]
[EventDate "2018.08.04"]
[EventType "swiss"]
[EventCountry "NOR"]
[SourceTitle "playchess.com"]
[Source "ChessBase"]
[SourceQuality "1"]
[TimeControl "40/5400+30:1800+30"]

1. Nf3 {[%emt 0:00:00]} d6 {[%emt 0:02:12]} 2. g3 {[%emt 0:00:54]} f5 {[%emt 0:04:25]} 3. Bg2 {[%emt 0:01:40]} Nf6 {[%emt 0:00:24]} 4. d3 {[%emt 0:00:39]} e5 {[%emt 0:00:47]} 5. c4 {[%emt 0:00:41]} Be7 {[%emt 0:00:35]} 6. Nc3 {[%emt 0:00:52]} O-O {[%emt 0:01:15]} 7. O-O {[%emt 0:00:42]} c6 {[%emt 0:04:59]} 8. c5 {[%emt 0:22:59]} d5 {[%emt 0:06:05]} 9. Nxe5 {[%emt 0:00:10]} Bxc5 {[%emt 0:00:13]} 10. d4 {[%emt 0:00:20]} Bd6 {[%emt 0:03:41]} 11. Nd3 {[%emt 0:01:50]} Nbd7 {[%emt 0:06:07]} 12. Bf4 {[%emt 0:03:02]} Bxf4 {[%emt 0:03:40]} 13. Nxf4 {[%emt 0:00:56]} Qe8 {[%emt 0:00:51]} 14. e3 {[%emt 0:11:11]} Ne4 {[%emt 0:01:02]} 15. Rc1 {[%emt 0:06:18]} Ndf6 {[%emt 0:03:11]} 16. Re1 {[%emt 0:20:08]} Bd7 {[%emt 0:10:35]} 17. Nd3 {[%emt 0:01:54]} Qe7 {[%emt 0:04:47]} 18. f3 {[%emt 0:06:43]} Nd6 {[%emt 0:03:03]} 19. b3 {[%emt 0:01:12]} Be8 {[%emt 0:05:42]} 20. Na4 {[%emt 0:00:35]} Bh5 {[%emt 0:03:47]} 21. Nac5 {[%emt 0:02:05]} Nfe4 {[%emt 0:02:58]} 22. g4 {[%emt 0:01:28]} Nxc5 {[%emt 0:05:20]} 23. dxc5 {[%emt 0:00:11]} fxg4 {[%emt 0:02:15]} 24. cxd6 {[%emt 0:01:12]} Qh4 {[%emt 0:00:38]} 25. fxg4 {[%emt 0:02:02]} Bxg4 {[%emt 0:00:20]} 26. Qd2 {[%emt 0:01:54]} Rf6 {[%emt 0:05:11]} 27. Ne5 {[%emt 0:01:09]} Rxd6 {[%emt 0:10:05]} 28. Nxg4 {[%emt 0:00:05]} Qxg4 {[%emt 0:00:07]} 29. Rf1 {[%emt 0:00:46]} Re6 {[%emt 0:02:08]} 30. Rf4 {[%emt 0:00:33]} Qg5 {[%emt 0:00:32]} 31. Rcf1 {[%emt 0:01:13]} h6 {[%emt 0:01:36]} 32. Qf2 {[%emt 0:01:38]} Rae8 {[%emt 0:04:06]} 33. Rf8+ {[%emt 0:05:10]} Rxf8 {[%emt 0:00:18]} 34. Qxf8+ {[%emt 0:00:11]} Kh7 {[%emt 0:00:05]} 35. Qf4 {[%emt 0:00:47]} Rxe3 {[%emt 0:00:46]} 36. Qxg5 {[%emt 0:00:03]} hxg5 {[%emt 0:00:10]} 37. Kf2 {[%emt 0:01:17]} Rc3 {[%emt 0:00:47]} 38. Re1 {[%emt 0:00:04]} Kg6 {[%emt 0:00:55]} 39. Bf3 {[%emt 0:01:52]} Kf6 {[%emt 0:01:46]} 40. Bg4 {[%emt 0:00:00]} a5 {[%emt 0:00:00]} 41. Re2 {[%emt 0:10:57]} a4 {[%emt 0:06:12]} 42. bxa4 {[%emt 0:00:19]} Ra3 {[%emt 0:00:13]} 43. Bc8 {[%emt 0:00:36]} Rxa4 {[%emt 0:03:10]} 44. Bxb7 {[%emt 0:00:12]} Rc4 {[%emt 0:00:11]} 45. Ke1 {[%emt 0:00:44]} d4 {[%emt 0:02:12]} 46. Kd1 {[%emt 0:00:48]} c5 {[%emt 0:01:32]} 47. Rc2 {[%emt 0:01:12]} Ra4 {[%emt 0:00:42]} 48. Bc6 {[%emt 0:01:28]} Ra3 {[%emt 0:01:18]} 49. Bd5 {[%emt 0:02:10]} Ra5 {[%emt 0:00:34]} 50. Bc6 {[%emt 0:02:52]} d3 {[%emt 0:02:24]} 51. Rf2+ {[%emt 0:02:46]} Ke5 {[%emt 0:00:21]} 52. a4 {[%emt 0:00:25]} c4 {[%emt 0:00:22]} 53. Bb5 {[%emt 0:00:54]} Ra7 {[%emt 0:02:20]} 54. Rg2 {[%emt 0:01:00]} c3 {[%emt 0:04:27]} 55. Rg3 {[%emt 0:02:18]} c2+ {[%emt 0:08:01]} 56. Kc1 {[%emt 0:00:13]} Rf7 {[%emt 0:00:24]} 57. Rxd3 {[%emt 0:00:28]} 1-0